[Event "Titled Tuesday Blitz August 16 Late 2022"]
[White "Fier, Alexandr"]
[Black "Salem, A.R. Saleh"]
[WhiteFideId "2107139"]
[BlackFideId "9301348"]
[WhiteElo "2598"]
[BlackElo "2674"]
[Result "1-0"]
[Round "03"]
[TimeControl "180+1"]
[Date "2022.08.16"]
[WhiteClock "0:00:16"]
[BlackClock "0:00:03"]

1. d4 {[%clk 0:03:00]}  d5 {[%clk 0:02:58]} 2. c4 {[%clk 0:03:00]}  e6 {[%clk 0:02:59]} 3. Nc3 {[%clk 0:02:59]}  Nf6 {[%clk 0:02:59]} 4. cxd5 {[%clk 0:02:59]}  exd5 {[%clk 0:03:00]} 5. Bg5 {[%clk 0:02:58]}  c6 {[%clk 0:03:01]} 6. e3 {[%clk 0:02:58]}  h6 {[%clk 0:03:02]} 7. Bh4 {[%clk 0:02:58]}  Be7 {[%clk 0:03:03]} 8. Bd3 {[%clk 0:02:58]}  O-O {[%clk 0:03:03]} 9. h3 {[%clk 0:02:58]}  Re8 {[%clk 0:03:04]} 10. Nf3 {[%clk 0:02:49]}  Ne4 {[%clk 0:03:03]} 11. Bxe7 {[%clk 0:02:46]}  Qxe7 {[%clk 0:03:04]} 12. Bxe4 {[%clk 0:02:46]}  dxe4 {[%clk 0:03:04]} 13. Nd2 {[%clk 0:02:46]}  Bf5 {[%clk 0:03:03]} 14. Qb3 {[%clk 0:02:34]}  Na6 {[%clk 0:02:59]} 15. O-O {[%clk 0:02:31]}  Nb4 {[%clk 0:02:57]} 16. Ne2 {[%clk 0:02:16]}  Be6 {[%clk 0:02:40]} 17. Qa3 {[%clk 0:02:11]}  a5 {[%clk 0:02:38]} 18. Ng3 {[%clk 0:02:02]}  Qh4 {[%clk 0:02:32]} 19. Qc3 {[%clk 0:01:56]}  Bxa2 {[%clk 0:02:30]} 20. b3 {[%clk 0:01:50]}  Ra6 {[%clk 0:01:02]} 21. Qb2 {[%clk 0:01:48]}  a4 {[%clk 0:01:02]} 22. Rxa2 {[%clk 0:01:33]}  Nxa2 {[%clk 0:01:03]} 23. Qxa2 {[%clk 0:01:34]}  a3 {[%clk 0:01:04]} 24. Qc2 {[%clk 0:01:29]}  Qg5 {[%clk 0:00:32]} 25. Ndxe4 {[%clk 0:01:14]}  Qg6 {[%clk 0:00:32]} 26. Ra1 {[%clk 0:01:14]}  h5 {[%clk 0:00:31]} 27. h4 {[%clk 0:01:15]}  Kh8 {[%clk 0:00:28]} 28. Ra2 {[%clk 0:01:14]}  Kg8 {[%clk 0:00:28]} 29. Nc3 {[%clk 0:00:52]}  Qg4 {[%clk 0:00:23]} 30. Nf5 {[%clk 0:00:34]}  Qg6 {[%clk 0:00:17]} 31. e4 {[%clk 0:00:32]}  b5 {[%clk 0:00:13]} 32. b4 {[%clk 0:00:32]}  Qe6 {[%clk 0:00:13]} 33. Ne3 {[%clk 0:00:28]}  Qf6 {[%clk 0:00:11]} 34. d5 {[%clk 0:00:28]}  Qxh4 {[%clk 0:00:10]} 35. dxc6 {[%clk 0:00:26]}  Rc8 {[%clk 0:00:11]} 36. Nf5 {[%clk 0:00:25]}  Qf6 {[%clk 0:00:10]} 37. Nd5 {[%clk 0:00:25]}  Qe6 {[%clk 0:00:02]} 38. Nfe7+ {[%clk 0:00:25]}  Kh7 {[%clk 0:00:02]} 39. Nxc8 {[%clk 0:00:26]}  Rxc6 {[%clk 0:00:02]} 40. Qd1 {[%clk 0:00:18]}  Qe5 {[%clk 0:00:02]} 41. Nce7 {[%clk 0:00:17]}  Rc4 {[%clk 0:00:02]} 42. Rxa3 {[%clk 0:00:17]}  g6 {[%clk 0:00:02]} 43. Rf3 {[%clk 0:00:17]}  f6 {[%clk 0:00:01]} 44. Nxf6+ {[%clk 0:00:16]}  Kg7 {[%clk 0:00:02]} 45. Ne8+ {[%clk 0:00:16]}  Kh6 {[%clk 0:00:02]} 46. Qd2+ {[%clk 0:00:16]}  g5 {[%clk 0:00:03]} 47. Rf6+ {[%clk 0:00:16]}  Kh7 {[%clk 0:00:03]} 48. Rf7+ {[%clk 0:00:17]}  Kh8 {[%clk 0:00:03]} 49. Ng6+ {[%clk 0:00:16]} 1-0


[Site "https://www.chess.com"]

[Event "Titled Tuesday Blitz August 16 Late 2022"]
[White "Gheorghiu, Calin"]
[Black "Rytenko, Vsevolod"]
[WhiteFideId "1200305"]
[BlackFideId "14133040"]
[WhiteElo "2168"]
[BlackElo "2120"]
[Result "0-1"]
[Round "03"]
[TimeControl "180+1"]
[Date "2022.08.18"]
[WhiteClock "0:00:00"]
[BlackClock "0:00:00"]

1. d4 {[%clk 0:00:00]}  Nf6 {[%clk 0:00:00]} 2. Nc3 {[%clk 0:00:00]}  d5 {[%clk 0:00:00]} 3. Bf4 {[%clk 0:00:00]}  g6 {[%clk 0:00:00]} 4. e3 {[%clk 0:00:00]}  Bg7 {[%clk 0:00:00]} 5. Nb5 {[%clk 0:00:00]}  Na6 {[%clk 0:00:00]} 6. h3 {[%clk 0:00:00]}  O-O {[%clk 0:00:00]} 7. Nf3 {[%clk 0:00:00]}  c6 {[%clk 0:00:00]} 8. Nc3 {[%clk 0:00:00]}  c5 {[%clk 0:00:00]} 9. Bxa6 {[%clk 0:00:00]}  bxa6 {[%clk 0:00:00]} 10. Ne5 {[%clk 0:00:00]}  Qb6 {[%clk 0:00:00]} 11. O-O {[%clk 0:00:00]}  cxd4 {[%clk 0:00:00]} 12. exd4 {[%clk 0:00:00]}  e6 {[%clk 0:00:00]} 13. Na4 {[%clk 0:00:00]}  Qb5 {[%clk 0:00:00]} 14. c3 {[%clk 0:00:00]}  Nd7 {[%clk 0:00:00]} 15. Nxd7 {[%clk 0:00:00]}  Bxd7 {[%clk 0:00:00]} 16. Nc5 {[%clk 0:00:00]}  Rfc8 {[%clk 0:00:00]} 17. Qd2 {[%clk 0:00:00]}  Be8 {[%clk 0:00:00]} 18. a4 {[%clk 0:00:00]}  Qc6 {[%clk 0:00:00]} 19. b4 {[%clk 0:00:00]}  Qb6 {[%clk 0:00:00]} 20. Bh6 {[%clk 0:00:00]}  Bh8 {[%clk 0:00:00]} 21. Rfe1 {[%clk 0:00:00]}  a5 {[%clk 0:00:00]} 22. b5 {[%clk 0:00:00]}  Rxc5 {[%clk 0:00:00]} 23. dxc5 {[%clk 0:00:00]}  Qxc5 {[%clk 0:00:00]} 24. Re3 {[%clk 0:00:00]}  Rc8 {[%clk 0:00:00]} 25. Qe2 {[%clk 0:00:00]}  Bxc3 {[%clk 0:00:00]} 26. Rc1 {[%clk 0:00:00]}  d4 {[%clk 0:00:00]} 27. Rf3 {[%clk 0:00:00]}  Qh5 {[%clk 0:00:00]} 28. Bd2 {[%clk 0:00:00]}  a6 {[%clk 0:00:00]} 29. g4 {[%clk 0:00:00]}  Qd5 {[%clk 0:00:00]} 30. Bxc3 {[%clk 0:00:00]}  dxc3 {[%clk 0:00:00]} 31. Rfxc3 {[%clk 0:00:00]}  Rxc3 {[%clk 0:00:00]} 32. Rxc3 {[%clk 0:00:00]}  axb5 {[%clk 0:00:00]} 33. axb5 {[%clk 0:00:00]}  Bxb5 {[%clk 0:00:00]} 34. Rc8+ {[%clk 0:00:00]}  Kg7 {[%clk 0:00:00]} 35. Qb2+ {[%clk 0:00:00]}  e5 {[%clk 0:00:00]} 36. Rc2 {[%clk 0:00:00]}  f6 {[%clk 0:00:00]} 37. Rd2 {[%clk 0:00:00]}  Qc4 {[%clk 0:00:00]} 38. Rd1 {[%clk 0:00:00]}  Bc6 {[%clk 0:00:00]} 39. Qc1 {[%clk 0:00:00]}  Qe4 {[%clk 0:00:00]} 40. Kf1 {[%clk 0:00:00]}  Qh1+ {[%clk 0:00:00]} 41. Ke2 {[%clk 0:00:00]}  Bf3+ {[%clk 0:00:00]} 42. Kd2 {[%clk 0:00:00]}  Qxd1+ {[%clk 0:00:00]} 43. Qxd1 {[%clk 0:00:00]}  Bxd1 {[%clk 0:00:00]} 44. Kxd1 {[%clk 0:00:00]}  f5 {[%clk 0:00:00]} 45. gxf5 {[%clk 0:00:00]}  gxf5 {[%clk 0:00:00]} 0-1


[Site "https://www.chess.com"]

[Event "Titled Tuesday Blitz August 16 Late 2022"]
[White "Goldin, Alexander"]
[Black "Petrovic, Aleksa"]
[WhiteFideId "2019540"]
[BlackFideId "967629"]
[WhiteElo "2542"]
[BlackElo "2262"]
[Result "1-0"]
[Round "03"]
[TimeControl "180+1"]
[Date "2022.08.18"]
[WhiteClock "0:00:00"]
[BlackClock "0:00:00"]

1. Nf3 {[%clk 0:00:00]}  Nf6 {[%clk 0:00:00]} 2. d4 {[%clk 0:00:00]}  e6 {[%clk 0:00:00]} 3. c4 {[%clk 0:00:00]}  b6 {[%clk 0:00:00]} 4. a3 {[%clk 0:00:00]}  d5 {[%clk 0:00:00]} 5. Nc3 {[%clk 0:00:00]}  Bb7 {[%clk 0:00:00]} 6. Bg5 {[%clk 0:00:00]}  Nbd7 {[%clk 0:00:00]} 7. cxd5 {[%clk 0:00:00]}  exd5 {[%clk 0:00:00]} 8. e3 {[%clk 0:00:00]}  Be7 {[%clk 0:00:00]} 9. Bd3 {[%clk 0:00:00]}  O-O {[%clk 0:00:00]} 10. O-O {[%clk 0:00:00]}  h6 {[%clk 0:00:00]} 11. Bf4 {[%clk 0:00:00]}  a6 {[%clk 0:00:00]} 12. b4 {[%clk 0:00:00]}  Ne4 {[%clk 0:00:00]} 13. Qb3 {[%clk 0:00:00]}  g5 {[%clk 0:00:00]} 14. Nxd5 {[%clk 0:00:00]}  Ndf6 {[%clk 0:00:00]} 15. Nxe7+ {[%clk 0:00:00]}  Qxe7 {[%clk 0:00:00]} 16. Be5 {[%clk 0:00:00]}  g4 {[%clk 0:00:00]} 17. Bxf6 {[%clk 0:00:00]}  Nxf6 {[%clk 0:00:00]} 18. Ne5 {[%clk 0:00:00]}  c5 {[%clk 0:00:00]} 19. bxc5 {[%clk 0:00:00]}  bxc5 {[%clk 0:00:00]} 20. Rab1 {[%clk 0:00:00]}  Bd5 {[%clk 0:00:00]} 21. Qd1 {[%clk 0:00:00]}  cxd4 {[%clk 0:00:00]} 22. Nxg4 {[%clk 0:00:00]}  dxe3 {[%clk 0:00:00]} 23. Nxh6+ {[%clk 0:00:00]}  Kh8 {[%clk 0:00:00]} 24. Nf5 {[%clk 0:00:00]}  exf2+ {[%clk 0:00:00]} 25. Rxf2 {[%clk 0:00:00]}  Qe5 {[%clk 0:00:00]} 26. Qd2 {[%clk 0:00:00]}  Ng4 {[%clk 0:00:00]} 27. Rf4 {[%clk 0:00:00]}  Rg8 {[%clk 0:00:00]} 28. Rxg4 {[%clk 0:00:00]}  Rxg4 {[%clk 0:00:00]} 29. Qh6+ {[%clk 0:00:00]}  Kg8 {[%clk 0:00:00]} 30. Ne7+ {[%clk 0:00:00]}  Qxe7 {[%clk 0:00:00]} 31. Bh7+ {[%clk 0:00:00]}  Kh8 {[%clk 0:00:00]} 32. Bg6+ {[%clk 0:00:00]} 1-0


[Site "https://www.chess.com"]

[Event "Titled Tuesday Blitz August 16 Late 2022"]
[White "Gomez Ledo, Roberto Carlos"]
[Black "Winterberg, Lukas"]
[WhiteFideId "3507076"]
[BlackFideId "24622702"]
[WhiteElo "2379"]
[BlackElo "2349"]
[Result "1/2-1/2"]
[Round "03"]
[TimeControl "180+1"]
[Date "2022.08.16"]
[WhiteClock "0:00:07"]
[BlackClock "0:00:07"]

1. d4 {[%clk 0:03:00]}  Nf6 {[%clk 0:02:59]} 2. Bf4 {[%clk 0:03:00]}  d5 {[%clk 0:02:58]} 3. e3 {[%clk 0:03:00]}  c5 {[%clk 0:02:55]} 4. c3 {[%clk 0:03:00]}  Nc6 {[%clk 0:02:55]} 5. Nd2 {[%clk 0:03:00]}  cxd4 {[%clk 0:02:55]} 6. exd4 {[%clk 0:02:58]}  Bf5 {[%clk 0:02:56]} 7. Ngf3 {[%clk 0:02:55]}  e6 {[%clk 0:02:56]} 8. Be2 {[%clk 0:02:50]}  Bd6 {[%clk 0:02:57]} 9. Bxd6 {[%clk 0:02:48]}  Qxd6 {[%clk 0:02:58]} 10. O-O {[%clk 0:02:47]}  h6 {[%clk 0:02:58]} 11. a4 {[%clk 0:02:46]}  O-O {[%clk 0:02:57]} 12. Re1 {[%clk 0:02:46]}  a6 {[%clk 0:02:54]} 13. a5 {[%clk 0:02:43]}  Ne4 {[%clk 0:02:50]} 14. Nxe4 {[%clk 0:02:42]}  Bxe4 {[%clk 0:02:51]} 15. Nd2 {[%clk 0:02:41]}  Bg6 {[%clk 0:02:46]} 16. Nb3 {[%clk 0:02:40]}  Qc7 {[%clk 0:02:28]} 17. Ra3 {[%clk 0:02:24]}  Rad8 {[%clk 0:02:20]} 18. Bd3 {[%clk 0:02:11]}  Bxd3 {[%clk 0:02:19]} 19. Qxd3 {[%clk 0:02:12]}  Rfe8 {[%clk 0:02:15]} 20. Qg3 {[%clk 0:02:09]}  e5 {[%clk 0:02:07]} 21. dxe5 {[%clk 0:01:56]}  Nxe5 {[%clk 0:02:06]} 22. Raa1 {[%clk 0:01:54]}  Qc4 {[%clk 0:01:43]} 23. Nd4 {[%clk 0:01:43]}  Ng6 {[%clk 0:01:13]} 24. Nf5 {[%clk 0:01:37]}  Rxe1+ {[%clk 0:00:58]} 25. Rxe1 {[%clk 0:01:35]}  Qc8 {[%clk 0:00:57]} 26. Nd4 {[%clk 0:01:01]}  Re8 {[%clk 0:00:56]} 27. Rxe8+ {[%clk 0:00:58]}  Qxe8 {[%clk 0:00:57]} 28. h3 {[%clk 0:00:58]}  Qe1+ {[%clk 0:00:53]} 29. Kh2 {[%clk 0:00:58]}  Qe5 {[%clk 0:00:54]} 30. Nf3 {[%clk 0:00:36]}  Qf4 {[%clk 0:00:45]} 31. b4 {[%clk 0:00:27]}  Kf8 {[%clk 0:00:43]} 32. Nd4 {[%clk 0:00:23]}  Ke7 {[%clk 0:00:38]} 33. Nb3 {[%clk 0:00:23]}  Kd6 {[%clk 0:00:33]} 34. Nc5 {[%clk 0:00:21]}  Kc6 {[%clk 0:00:32]} 35. Kg1 {[%clk 0:00:18]}  Qxg3 {[%clk 0:00:28]} 36. fxg3 {[%clk 0:00:19]}  Ne5 {[%clk 0:00:21]} 37. Kf2 {[%clk 0:00:19]}  Nd7 {[%clk 0:00:18]} 38. Nxd7 {[%clk 0:00:18]}  Kxd7 {[%clk 0:00:18]} 39. Ke3 {[%clk 0:00:18]}  Ke6 {[%clk 0:00:18]} 40. Kd4 {[%clk 0:00:18]}  Kd6 {[%clk 0:00:18]} 41. g4 {[%clk 0:00:18]}  f6 {[%clk 0:00:13]} 42. h4 {[%clk 0:00:18]}  g6 {[%clk 0:00:10]} 43. h5 {[%clk 0:00:17]}  g5 {[%clk 0:00:09]} 44. g3 {[%clk 0:00:16]}  Kc6 {[%clk 0:00:09]} 45. c4 {[%clk 0:00:13]}  dxc4 {[%clk 0:00:10]} 46. Kxc4 {[%clk 0:00:14]}  Kd6 {[%clk 0:00:05]} 47. b5 {[%clk 0:00:13]}  axb5+ {[%clk 0:00:05]} 48. Kxb5 {[%clk 0:00:13]}  Kc7 {[%clk 0:00:05]} 49. Kc5 {[%clk 0:00:14]}  Kd7 {[%clk 0:00:05]} 50. Kd5 {[%clk 0:00:12]}  Ke7 {[%clk 0:00:06]} 51. Kc5 {[%clk 0:00:11]}  Kd7 {[%clk 0:00:06]} 52. Kb6 {[%clk 0:00:11]}  Kc8 {[%clk 0:00:06]} 53. Kb5 {[%clk 0:00:10]}  Kd7 {[%clk 0:00:06]} 54. Kc5 {[%clk 0:00:10]}  Kc7 {[%clk 0:00:06]} 55. Kd5 {[%clk 0:00:09]}  Kd7 {[%clk 0:00:06]} 56. Kc5 {[%clk 0:00:09]}  Kc7 {[%clk 0:00:07]} 57. Kb5 {[%clk 0:00:08]}  Kd7 {[%clk 0:00:07]} 58. Kc5 {[%clk 0:00:07]} 1/2-1/2


[Site "https://www.chess.com"]

[Event "Titled Tuesday Blitz August 16 Late 2022"]
[White "Harshal, Shahi"]
[Black "Gallana, Marco"]
[WhiteFideId "5048257"]
[BlackFideId "824542"]
[WhiteElo "2054"]
[BlackElo "2290"]
[Result "0-1"]
[Round "03"]
[TimeControl "180+1"]
[Date "2022.08.18"]
[WhiteClock "0:00:00"]
[BlackClock "0:00:00"]

1. e4 {[%clk 0:00:00]}  c5 {[%clk 0:00:00]} 2. Nf3 {[%clk 0:00:00]}  Nc6 {[%clk 0:00:00]} 3. d4 {[%clk 0:00:00]}  cxd4 {[%clk 0:00:00]} 4. Nxd4 {[%clk 0:00:00]}  e5 {[%clk 0:00:00]} 5. Nb5 {[%clk 0:00:00]}  d6 {[%clk 0:00:00]} 6. N1c3 {[%clk 0:00:00]}  a6 {[%clk 0:00:00]} 7. Na3 {[%clk 0:00:00]}  Be7 {[%clk 0:00:00]} 8. Nd5 {[%clk 0:00:00]}  Nf6 {[%clk 0:00:00]} 9. Nxe7 {[%clk 0:00:00]}  Nxe7 {[%clk 0:00:00]} 10. Bd3 {[%clk 0:00:00]}  d5 {[%clk 0:00:00]} 11. exd5 {[%clk 0:00:00]}  Nexd5 {[%clk 0:00:00]} 12. O-O {[%clk 0:00:00]}  O-O {[%clk 0:00:00]} 13. Bg5 {[%clk 0:00:00]}  h6 {[%clk 0:00:00]} 14. Bh4 {[%clk 0:00:00]}  g5 {[%clk 0:00:00]} 15. Bg3 {[%clk 0:00:00]}  Nf4 {[%clk 0:00:00]} 16. Nc4 {[%clk 0:00:00]}  Qc7 {[%clk 0:00:00]} 17. Ne3 {[%clk 0:00:00]}  Be6 {[%clk 0:00:00]} 18. Bf5 {[%clk 0:00:00]}  Rfd8 {[%clk 0:00:00]} 19. Qe1 {[%clk 0:00:00]}  Qc6 {[%clk 0:00:00]} 20. Bxe6 {[%clk 0:00:00]}  Qxe6 {[%clk 0:00:00]} 21. b3 {[%clk 0:00:00]}  b5 {[%clk 0:00:00]} 22. c4 {[%clk 0:00:00]}  N6h5 {[%clk 0:00:00]} 23. h3 {[%clk 0:00:00]}  Rac8 {[%clk 0:00:00]} 24. cxb5 {[%clk 0:00:00]}  axb5 {[%clk 0:00:00]} 25. Ng4 {[%clk 0:00:00]}  Qc6 {[%clk 0:00:00]} 26. f3 {[%clk 0:00:00]}  Nd3 {[%clk 0:00:00]} 27. Nxe5 {[%clk 0:00:00]}  Qc5+ {[%clk 0:00:00]} 28. Bf2 {[%clk 0:00:00]}  Qxe5 {[%clk 0:00:00]} 29. Qb4 {[%clk 0:00:00]}  Nxb4 {[%clk 0:00:00]} 0-1


[Site "https://www.chess.com"]

[Event "Titled Tuesday Blitz August 16 Late 2022"]
[White "Janaszak, Dawid"]
[Black "Belenkaya, Dina"]
[WhiteFideId "1119206"]
[BlackFideId "24142654"]
[WhiteElo "2331"]
[BlackElo "2293"]
[Result "1-0"]
[Round "03"]
[TimeControl "180+1"]
[Date "2022.08.18"]
[WhiteClock "0:00:00"]
[BlackClock "0:00:00"]

1. e4 {[%clk 0:00:00]}  e6 {[%clk 0:00:00]} 2. b3 {[%clk 0:00:00]}  d5 {[%clk 0:00:00]} 3. Bb2 {[%clk 0:00:00]}  d4 {[%clk 0:00:00]} 4. c3 {[%clk 0:00:00]}  c5 {[%clk 0:00:00]} 5. Nf3 {[%clk 0:00:00]}  Nc6 {[%clk 0:00:00]} 6. Bb5 {[%clk 0:00:00]}  Qb6 {[%clk 0:00:00]} 7. Bxc6+ {[%clk 0:00:00]}  Qxc6 {[%clk 0:00:00]} 8. O-O {[%clk 0:00:00]}  Qxe4 {[%clk 0:00:00]} 9. cxd4 {[%clk 0:00:00]}  cxd4 {[%clk 0:00:00]} 10. Bxd4 {[%clk 0:00:00]}  Nf6 {[%clk 0:00:00]} 11. Nc3 {[%clk 0:00:00]}  Qd3 {[%clk 0:00:00]} 12. Re1 {[%clk 0:00:00]}  Bd6 {[%clk 0:00:00]} 13. Re3 {[%clk 0:00:00]}  Qf5 {[%clk 0:00:00]} 14. Be5 {[%clk 0:00:00]}  Bd7 {[%clk 0:00:00]} 15. Bxd6 {[%clk 0:00:00]}  Rd8 {[%clk 0:00:00]} 16. Bc7 {[%clk 0:00:00]}  Rc8 {[%clk 0:00:00]} 17. Bd6 {[%clk 0:00:00]}  Bc6 {[%clk 0:00:00]} 18. Nd4 {[%clk 0:00:00]}  Qd5 {[%clk 0:00:00]} 19. Nxd5 {[%clk 0:00:00]} 1-0


[Site "https://www.chess.com"]

[Event "Titled Tuesday Blitz August 16 Late 2022"]
[White "Kaganskiy, Gleb"]
[Black "Lamaze, Simon"]
[WhiteFideId "4132025"]
[BlackFideId "36069264"]
[WhiteElo "2243"]
[BlackElo "2371"]
[Result "0-1"]
[Round "03"]
[TimeControl "180+1"]
[Date "2022.08.18"]
[WhiteClock "0:00:00"]
[BlackClock "0:00:00"]

1. c4 {[%clk 0:00:00]}  Nf6 {[%clk 0:00:00]} 2. Nc3 {[%clk 0:00:00]}  e6 {[%clk 0:00:00]} 3. g3 {[%clk 0:00:00]}  d5 {[%clk 0:00:00]} 4. d4 {[%clk 0:00:00]}  a6 {[%clk 0:00:00]} 5. Bg2 {[%clk 0:00:00]}  dxc4 {[%clk 0:00:00]} 6. Nf3 {[%clk 0:00:00]}  Nc6 {[%clk 0:00:00]} 7. O-O {[%clk 0:00:00]}  Rb8 {[%clk 0:00:00]} 8. e4 {[%clk 0:00:00]}  b5 {[%clk 0:00:00]} 9. e5 {[%clk 0:00:00]}  Nd5 {[%clk 0:00:00]} 10. Ne4 {[%clk 0:00:00]}  h6 {[%clk 0:00:00]} 11. h4 {[%clk 0:00:00]}  Bb7 {[%clk 0:00:00]} 12. h5 {[%clk 0:00:00]}  Ncb4 {[%clk 0:00:00]} 13. Nh2 {[%clk 0:00:00]}  Nd3 {[%clk 0:00:00]} 14. Qg4 {[%clk 0:00:00]}  c5 {[%clk 0:00:00]} 15. dxc5 {[%clk 0:00:00]}  Nxe5 {[%clk 0:00:00]} 16. Qe2 {[%clk 0:00:00]}  Nd3 {[%clk 0:00:00]} 17. Qg4 {[%clk 0:00:00]}  Nxc5 {[%clk 0:00:00]} 18. Nxc5 {[%clk 0:00:00]}  Bxc5 {[%clk 0:00:00]} 19. Qxg7 {[%clk 0:00:00]}  Qf6 {[%clk 0:00:00]} 20. Qg4 {[%clk 0:00:00]}  Ke7 {[%clk 0:00:00]} 21. Qe2 {[%clk 0:00:00]}  Rbg8 {[%clk 0:00:00]} 22. Ng4 {[%clk 0:00:00]}  Qf5 {[%clk 0:00:00]} 23. Nxh6 {[%clk 0:00:00]}  Rxh6 {[%clk 0:00:00]} 24. Bxh6 {[%clk 0:00:00]}  Rxg3 {[%clk 0:00:00]} 25. Rad1 {[%clk 0:00:00]}  Rxg2+ {[%clk 0:00:00]} 26. Kxg2 {[%clk 0:00:00]} 0-1


[Site "https://www.chess.com"]

[Event "Titled Tuesday Blitz August 16 Late 2022"]
[White "Kambrath, Yannick"]
[Black "Urazayev, Arystanbek"]
[WhiteFideId "20632525"]
[BlackFideId "13709810"]
[WhiteElo "2236"]
[BlackElo "2441"]
[Result "0-1"]
[Round "03"]
[TimeControl "180+1"]
[Date "2022.08.16"]
[WhiteClock "0:02:24"]
[BlackClock "0:01:44"]

1. e4 {[%clk 0:03:00]}  e6 {[%clk 0:02:58]} 2. d4 {[%clk 0:02:59]}  d5 {[%clk 0:02:59]} 3. Nd2 {[%clk 0:02:59]}  Be7 {[%clk 0:02:58]} 4. Ngf3 {[%clk 0:02:59]}  Nf6 {[%clk 0:02:56]} 5. Bd3 {[%clk 0:02:59]}  c5 {[%clk 0:02:55]} 6. dxc5 {[%clk 0:02:57]}  dxe4 {[%clk 0:02:43]} 7. Nxe4 {[%clk 0:02:55]}  Nxe4 {[%clk 0:02:43]} 8. Bxe4 {[%clk 0:02:56]}  Qxd1+ {[%clk 0:02:43]} 9. Kxd1 {[%clk 0:02:57]}  Bxc5 {[%clk 0:02:39]} 10. Ke2 {[%clk 0:02:57]}  f5 {[%clk 0:02:36]} 11. Bd3 {[%clk 0:02:56]}  Nc6 {[%clk 0:02:36]} 12. Bf4 {[%clk 0:02:51]}  Kf7 {[%clk 0:02:19]} 13. Bb5 {[%clk 0:02:49]}  Nd4+ {[%clk 0:02:00]} 14. Nxd4 {[%clk 0:02:49]}  Bxd4 {[%clk 0:02:01]} 15. c3 {[%clk 0:02:49]}  Bf6 {[%clk 0:02:01]} 16. Rhd1 {[%clk 0:02:43]}  e5 {[%clk 0:01:57]} 17. Be3 {[%clk 0:02:43]}  Be6 {[%clk 0:01:56]} 18. f4 {[%clk 0:02:35]}  exf4 {[%clk 0:01:54]} 19. Bxf4 {[%clk 0:02:35]}  a6 {[%clk 0:01:52]} 20. Ba4 {[%clk 0:02:32]}  g5 {[%clk 0:01:51]} 21. Be3 {[%clk 0:02:26]}  f4 {[%clk 0:01:50]} 22. Bd4 {[%clk 0:02:26]}  Bg4+ {[%clk 0:01:51]} 23. Kf2 {[%clk 0:02:23]}  Bxd1 {[%clk 0:01:51]} 24. Rxd1 {[%clk 0:02:23]}  Bxd4+ {[%clk 0:01:49]} 25. Rxd4 {[%clk 0:02:24]}  Rad8 {[%clk 0:01:48]} 26. Rb4 {[%clk 0:02:22]}  b5 {[%clk 0:01:48]} 27. Bb3+ {[%clk 0:02:22]}  Kf6 {[%clk 0:01:48]} 28. a4 {[%clk 0:02:23]}  Rd2+ {[%clk 0:01:48]} 29. Kf3 {[%clk 0:02:24]}  Rxb2 {[%clk 0:01:44]} 30. axb5 {[%clk 0:02:24]}  a5 {[%clk 0:01:44]} 0-1


[Site "https://www.chess.com"]

[Event "Titled Tuesday Blitz August 16 Late 2022"]
[White "Kamsky, Gata"]
[Black "Mikhailov, Viacheslav"]
[WhiteFideId "2000024"]
[BlackFideId "4187369"]
[WhiteElo "2666"]
[BlackElo "2381"]
[Result "1/2-1/2"]
[Round "03"]
[TimeControl "180+1"]
[Date "2022.08.16"]
[WhiteClock "0:01:12"]
[BlackClock "0:01:37"]

1. e4 {[%clk 0:03:00]}  d6 {[%clk 0:02:59]} 2. d4 {[%clk 0:02:59]}  Nf6 {[%clk 0:03:00]} 3. Nc3 {[%clk 0:02:56]}  g6 {[%clk 0:03:00]} 4. Nf3 {[%clk 0:02:53]}  Bg7 {[%clk 0:02:59]} 5. Bd3 {[%clk 0:02:50]}  O-O {[%clk 0:03:00]} 6. O-O {[%clk 0:02:49]}  Bg4 {[%clk 0:03:00]} 7. h3 {[%clk 0:02:48]}  Bxf3 {[%clk 0:03:00]} 8. Qxf3 {[%clk 0:02:48]}  Nc6 {[%clk 0:03:01]} 9. Ne2 {[%clk 0:02:47]}  e5 {[%clk 0:02:59]} 10. c3 {[%clk 0:02:45]}  d5 {[%clk 0:02:51]} 11. exd5 {[%clk 0:02:41]}  Qxd5 {[%clk 0:02:52]} 12. Qxd5 {[%clk 0:02:40]}  Nxd5 {[%clk 0:02:53]} 13. Be4 {[%clk 0:02:06]}  Rad8 {[%clk 0:02:53]} 14. c4 {[%clk 0:02:03]}  Nb6 {[%clk 0:02:30]} 15. d5 {[%clk 0:02:02]}  Nb4 {[%clk 0:01:57]} 16. Bd2 {[%clk 0:01:42]}  Na6 {[%clk 0:01:50]} 17. b3 {[%clk 0:01:34]}  f5 {[%clk 0:01:46]} 18. Bc2 {[%clk 0:01:33]}  c6 {[%clk 0:01:42]} 19. Bg5 {[%clk 0:01:18]}  Bf6 {[%clk 0:01:41]} 20. Bh6 {[%clk 0:01:17]}  Bg7 {[%clk 0:01:38]} 21. Bg5 {[%clk 0:01:17]}  Bf6 {[%clk 0:01:38]} 22. Bh6 {[%clk 0:01:12]}  Bg7 {[%clk 0:01:37]} 23. Bg5 {[%clk 0:01:12]} 1/2-1/2


[Site "https://www.chess.com"]